fUST/lending_fUST_20240505
["ID","MTS","AMOUNT","RATE_DAILY","PERIOD"]
[325401876,1714838414149,157.4,0.00019923,3]
[325401877,1714838414778,157.4,0.00019615,3]
[325401885,1714838688815,419.47387869,0.00020027,9]
[325401886,1714838693796,419.47387866,0.00020423,9]
[325401888,1714838703786,419.47387866,0.0002082,9]
[325401891,1714838898845,466.1016718,0.0002,2]
[325401896,1714839009154,150.0,0.00019615,3]
[325401897,1714839009738,150.0,0.00019923,3]
[325402018,1714839038635,-166.34331364,0.00020021,2]
[325402019,1714839038645,-1294.76718412,0.00020108,2]
[325402020,1714839038656,-878.98761258,0.00020108,2]
[325402021,1714839038666,-116.94188743,0.00020109,2]
[325402056,1714839043814,-7761.93481928,0.00020109,2]
[325402057,1714839043825,-3053.54454188,0.0002011,2]
[325402058,1714839043835,-23433.92311644,0.0002011,2]
[325402067,1714839047265,-26966.61254332,0.0002011,2]
[325402068,1714839061727,525.45739291,0.0002,4]
[325402069,1714839067249,3387.86342328,0.00019999,2]
[325402071,1714839145972,436.8054144,0.00019824,4]
[325402076,1714839467669,409878.09591,0.000198,2]
[325402077,1714839570497,158.07345455,9.999e-05,2]
[325402078,1714839608930,150.0,0.00019628,3]
[325402079,1714839609524,150.0,0.00019935,3]
[325402080,1714839702881,262.17117418,0.00020429,9]
[325402081,1714839707922,262.17117416,0.00020432,9]
[325402082,1714839712927,262.17117416,0.00020434,9]
[325402083,1714839717905,262.17117416,0.00020437,9]
[325402084,1714839723163,262.17117416,0.0002044,9]
[325402085,1714839727942,262.17117416,0.00020443,9]
[325402086,1714839732924,262.17117416,0.00020445,9]
[325402087,1714839738144,262.17117416,0.00020448,9]
[325402089,1714840112877,431.19471018,0.00019178,2]
[325402109,1714840208726,150.0,0.00019625,3]
[325402110,1714840209344,150.0,0.00019932,3]
[325402121,1714840231925,-2173.7547967,0.00020115,2]
[325402122,1714840231934,-167.25241983,0.00020116,2]
[325402123,1714840231944,-7878.87670671,0.00020116,2]
[325402124,1714840231953,-154.70605849,0.00020121,2]
[325402125,1714840231963,-150.0,0.00020239,3]
[325402126,1714840231972,-990.89702146,0.000205,2]
[325402127,1714840231981,-150.0,0.00020545,3]
[325402128,1714840231990,-166.34331361,0.00020656,2]
[325402129,1714840231999,-153.0,0.00020656,2]
[325402130,1714840232008,-153.0,0.00020656,2]
[325402131,1714840232017,-153.0,0.00020656,2]
[325402132,1714840232025,-153.0,0.00020656,2]
[325402133,1714840232035,-153.0,0.000207,2]
[325402134,1714840232044,-153.0,0.000207,2]
[325402135,1714840232053,-153.0,0.00020756,2]
[325402136,1714840232062,-153.0,0.00020756,2]
[325402137,1714840232072,-153.0,0.00020756,2]
[325402138,1714840232082,-1026.7620254,0.00020798,2]
[325402139,1714840232091,-153.0,0.000208,2]
[325402140,1714840232100,-153.0,0.000208,2]
[325402141,1714840232109,-153.0,0.000208,2]
[325402142,1714840232118,-153.0,0.000208,2]
[325402143,1714840232127,-153.0,0.000208,2]
[325402144,1714840232136,-153.0,0.000208,2]
[325402145,1714840232145,-153.0,0.000208,2]
[325402146,1714840232154,-153.0,0.000208,2]
[325402147,1714840232163,-153.0,0.000208,2]
[325402148,1714840232173,-150.0,0.00020852,3]
[325402149,1714840232185,-1335.70800233,0.00020912,2]
[325402150,1714840232195,-59259.41902587,0.00020913,2]
[325402151,1714840232335,-150.0,0.00020928,2]
[325402152,1714840232345,-493.0,0.00020928,2]
[325402153,1714840232355,-455.31253195,0.00021,2]
[325402154,1714840232364,-3962.99481048,0.00021,2]
[325402155,1714840232373,-150.0,0.00021159,3]
[325402156,1714840232383,-153.0,0.00021452,2]
[325402157,1714840232392,-153.0,0.00021452,2]
[325402158,1714840232401,-153.0,0.00021452,2]
[325402159,1714840232409,-153.0,0.00021452,2]
[325402160,1714840232418,-153.0,0.00021452,2]
[325402161,1714840232427,-153.0,0.00021452,2]
[325402162,1714840232435,-153.0,0.00021452,2]
[325402163,1714840232445,-153.0,0.00021452,2]
[325402164,1714840232453,-153.0,0.00021452,2]
[325402165,1714840232462,-153.0,0.00021452,2]
[325402166,1714840232471,-153.0,0.00021452,2]
[325402167,1714840232480,-150.0,0.00021466,3]
[325402168,1714840232489,-153.0,0.00021478,2]
[325402169,1714840232499,-153.0,0.00021478,2]
[325402170,1714840232508,-837.522849,0.00021524,2]
[325402171,1714840232518,-930.656435,0.00021524,2]
[325402172,1714840232527,-166.34331361,0.00021777,2]
[325402173,1714840232537,-930.656435,0.00021793,2]
[325402174,1714840232546,-837.522849,0.00021793,2]
[325402175,1714840232557,-166.666666,0.00021918,2]
[325402176,1714840232567,-159.34994831,0.00022,2]
[325402177,1714840232577,-930.656435,0.00022062,2]
[325402178,1714840232586,-837.522849,0.00022062,2]
[325402179,1714840232596,-930.656435,0.00022331,2]
[325402181,1714840232605,-837.522849,0.00022331,2]
[325402183,1714840232614,-166.666666,0.00022431,2]
[325402185,1714840232624,-930.656435,0.00022601,2]
[325402186,1714840232633,-837.522849,0.00022601,2]
[325402187,1714840232642,-192.24718315,0.00022769,2]
[325402188,1714840232651,-1000.0,0.0002277,2]
[325402189,1714840232660,-1000.0,0.00022803,2]
[325402190,1714840232670,-1000.0,0.00022837,2]
[325402191,1714840232680,-1000.0,0.00022838,2]
[325402192,1714840232690,-1000.0,0.00022855,2]
[325402193,1714840232700,-1000.0,0.00022873,2]
[325402194,1714840232709,-869.27334476,0.00022893,2]
[325402195,1714840232718,-166.34331361,0.00022898,2]
[325402196,1714840232728,-1000.0,0.00022899,2]
[325402197,1714840232737,-1000.0,0.00022899,2]
[325402198,1714840232746,-5500.88958385,0.000229,3]
[325402201,1714840237883,-1982.76104799,0.000229,3]
[325402202,1714840237952,-2728.52555702,0.000229,3]
[325402203,1714840237961,-2000.0,0.000229,2]
[325402204,1714840237971,-1000.0,0.00022919,2]
[325402205,1714840237980,-1000.0,0.0002292,2]
[325402206,1714840237990,-654.35069676,0.00022921,2]
[325402207,1714840238000,-166.666666,0.00022944,2]
[325402208,1714840238009,-1000.0,0.00022949,2]
[325402209,1714840238018,-1000.0,0.00022957,2]
[325402210,1714840238028,-302.08175737,0.00022965,2]
[325402211,1714840238037,-1000.0,0.00022985,2]
[325402212,1714840238047,-1000.0,0.00022988,2]
[325402213,1714840238056,-1000.0,0.00022989,2]
[325402214,1714840238066,-1000.0,0.00022994,2]
[325402215,1714840238075,-239.57324924,0.00022996,2]
[325402216,1714840238085,-247.54682264,0.00022996,2]
[325402217,1714840238095,-1549.16983987,0.00022996,2]
[325402218,1714840238244,-158.01446209,0.00022996,2]
[325402219,1714840238255,-565.42105856,0.00022996,2]
[325402220,1714840238264,-154.81422293,0.00022997,2]
[325402221,1714840238273,-740.78985914,0.00022997,2]
[325402222,1714840238283,-1542.74580839,0.00022998,2]
[325402232,1714840240033,-192.24718315,0.00022769,2]
[325402233,1714840240043,-337.63525162,0.00022998,2]
[325402234,1714840240052,-604.99366435,0.00022998,2]
[325402246,1714840259756,165.41143922,0.0002,2]
[325402250,1714840278897,638.74,0.00020016,2]
[325402252,1714840318342,400.0,0.0002,2]
[325402257,1714840389534,164.33675187,0.00020813,9]
[325402260,1714840396091,5825.53265531,0.00020016,2]
[325402261,1714840399519,164.33675185,0.00021085,10]
[325402262,1714840413885,241.02816564,0.0002,2]
[325402268,1714840635423,164.33675185,0.00020717,9]
[325402269,1714840675000,-167.25241983,0.00020715,2]
[325402270,1714840675024,-164.23781899,0.00020716,2]
[325402271,1714840675046,-990.89702146,0.00020816,2]
[325402272,1714840675068,-7878.87670671,0.00020816,2]
[325402273,1714840675090,-1132.52624908,0.00020817,2]
[325402274,1714840675114,-150.0,0.0002082,2]
[325402275,1714840675137,-150.0,0.00020927,2]
[325402276,1714840675160,-3962.99481048,0.00021,2]
[325402277,1714840692874,3962.99481048,0.00021,2]
[325402278,1714840710857,3962.99481048,0.00021,2]
[325402279,1714840728857,3962.99481048,0.00021,2]
[325402280,1714840746868,3962.99481048,0.00021,2]
[325402281,1714840773001,3962.99481048,0.00021,2]
[325402282,1714840790877,3962.99481048,0.00021,2]
[325402283,1714840801089,154.7215013,0.00020913,2]
[325402284,1714840810875,3962.99481048,0.00021,2]
[325402285,1714840830879,3353.63742984,0.00021,2]
[325402286,1714840865438,1132.52624908,0.00020913,2]
[325402287,1714840896583,272.38076791,0.00020696,5]
[325402288,1714840932104,154.7215013,0.00020913,2]
[325402293,1714841012500,1132.52624908,0.00020913,2]
[325402294,1714841107605,154.7215013,0.00020913,2]
[325402296,1714841119264,493.0,0.00020927,2]
[325402297,1714841150633,150.0,0.00020927,2]
[325402298,1714841163448,1132.52624908,0.00020913,2]
[325402300,1714841260635,154.7215013,0.00020913,2]
[325402301,1714841292477,1132.52624908,0.00020913,2]
[325402302,1714841429495,1132.52624908,0.00020913,2]
[325402336,1714841438114,-164.23781899,0.00021818,2]
[325402337,1714841438124,-166.666666,0.00021918,2]
[325402338,1714841438134,-2786.09551501,0.00021918,2]
[325402339,1714841438218,-2486.11225829,0.00021918,2]
[325402341,1714841438228,-2000.00000485,0.00022,2]
[325402343,1714841438238,-166.666666,0.00022431,2]
[325402345,1714841438248,-192.24718316,0.00022769,2]
[325402347,1714841438258,-239.57202569,0.000228,2]
[325402349,1714841438267,-239.57202568,0.00022825,2]
[325402351,1714841438277,-239.57202568,0.00022849,2]
[325402353,1714841438286,-239.57202568,0.00022874,2]
[325402355,1714841438296,-6334.96389955,0.00022876,2]
[325402357,1714841438306,-239.57202568,0.00022898,2]
[325402359,1714841438316,-55555.0,0.000229,3]
[325402361,1714841438325,-2000.0,0.000229,2]
[325402362,1714841438334,-166.666666,0.00022944,2]
[325402363,1714841438343,-15678.27203672,0.00022996,2]
[325402364,1714841438352,-189.3964787,0.00022996,2]
[325402365,1714841438362,-1190.91958837,0.00022996,2]
[325402366,1714841438371,-990.89702146,0.00022996,2]
[325402367,1714841438380,-224.35024444,0.00022996,7]
[325402368,1714841438390,-258.88349141,0.00022996,2]
[325402369,1714841438400,-302.00880107,0.00022997,2]
[325402370,1714841438410,-7494.65397952,0.00022997,2]
[325402371,1714841438419,-21657.17381853,0.00022998,2]
[325402372,1714841438428,-907.22455232,0.00022998,2]
[325402373,1714841438438,-473.07523748,0.00022998,2]
[325402374,1714841438447,-891.13661831,0.00022998,2]
[325402375,1714841438456,-154.70605849,0.00022998,2]
[325402376,1714841438466,-409.39448055,0.00022998,2]
[325402377,1714841438475,-1091.92588684,0.00022998,2]
[325402378,1714841438484,-235.89828702,0.00022998,2]
[325402379,1714841438495,-437.71492806,0.00022998,2]
[325402380,1714841438503,-3052.30994532,0.00022998,2]
[325402381,1714841438513,-1395.86161104,0.00022998,2]
[325402382,1714841438522,-247.53710411,0.00022998,4]
[325402383,1714841438531,-159.27271369,0.00022998,2]
[325402384,1714841438545,-375.0522649,0.00022998,2]
[325402386,1714841440228,-1190.91958837,0.00022998,2]
[325402417,1714841520219,2151.93155539,0.00020913,2]
[325402420,1714841574578,1132.52624908,0.00020913,2]
[325402421,1714841678585,2304.18796152,0.000205,5]
[325402422,1714841709550,1132.52624908,0.00020913,2]
[325402423,1714841735180,474.90429325,0.00020898,2]
[325402424,1714841850558,1132.52624908,0.00020913,2]
[325402425,1714842013522,493.0,0.00020927,2]
[325402426,1714842036920,316.60286217,0.00020898,2]
[325402427,1714842041179,150.0,0.0002098,2]
[325402429,1714842338837,211.06857478,0.00020898,2]
[325402490,1714842638386,-160.585066,0.00021725,2]
[325402491,1714842638396,-166.666666,0.00021918,2]
[325402492,1714842638406,-675.862198,0.00022,2]
[325402497,1714842640858,150.0,0.000199,2]
[325402500,1714842642042,-1190.91958837,0.00022,2]
[325402517,1714842643659,-133.21821363,0.00022,2]
[325402518,1714842643669,-152.0,0.00022155,2]
[325402519,1714842643679,-166.666666,0.00022431,2]
[325402520,1714842643688,-273.75437888,0.00022898,2]
[325402521,1714842643697,-273.75437885,0.00022899,2]
[325402522,1714842643706,-273.75437885,0.00022899,2]
[325402523,1714842643716,-273.75437885,0.000229,2]
[325402524,1714842643725,-9236.54015284,0.000229,3]
[325402525,1714842643734,-187.83000605,0.000229,11]
[325402527,1714842643743,-2000.0,0.000229,2]
[325402528,1714842643752,-273.75437885,0.000229,2]
[325402530,1714842643762,-166.666666,0.00022944,2]
[325402532,1714842643771,-150.0,0.0002299,2]
[325402534,1714842643781,-158.01446209,0.00022996,2]
[325402536,1714842643790,-1000.0,0.00022996,2]
[325402538,1714842643799,-676.03774179,0.00022997,2]
[325402539,1714842643808,-239.99639101,0.00022998,2]
[325402540,1714842643817,-15678.27203672,0.00022998,2]
[325402541,1714842643827,-5462.53125909,0.00022998,2]
[325402542,1714842643836,-278.83395562,0.00022998,2]
[325402543,1714842643844,-2150.39037899,0.00022998,2]
[325402544,1714842643854,-1395.53333128,0.00022998,2]
[325402545,1714842643863,-27334.90959295,0.00022998,2]
[325402568,1714842652303,154.7215013,9.999e-05,2]
[325402569,1714842722468,319.00436754,9.999e-05,2]
[325402570,1714842726956,319.00436754,9.999e-05,2]
[325402571,1714842806647,154.7215013,0.00020913,2]
[325402572,1714842897471,319.00436754,0.00020913,2]
[325402574,1714842942078,150.0,0.00020898,2]
[325402575,1714843028794,319.00436754,0.00020913,2]
[325402576,1714843169710,319.00436754,0.00020913,2]
[325402577,1714843209087,150.0,0.00019733,3]
[325402578,1714843209677,150.0,0.0002003,3]
[325402579,1714843210319,150.0,0.00020327,3]
[325402580,1714843210912,150.0,0.00020624,3]
[325402581,1714843211534,150.0,0.00020921,3]
[325402582,1714843279864,365.63420233,0.00020921,2]
[325402583,1714843356017,3524.5551199,0.00020921,2]
[325402584,1714843444926,319.00436754,0.00020913,2]
[325402585,1714843591487,1096.78756551,0.00021,2]
[325402586,1714843710103,2061.18315395,0.00021,2]
[325402589,1714843809092,150.0,0.00019805,3]
[325402590,1714843809691,150.0,0.00020095,3]
[325402591,1714843810260,150.0,0.00020386,3]
[325402601,1714843833220,-150.0,0.00021187,2]
[325402602,1714843833231,-493.0,0.00021187,2]
[325402603,1714843833243,-167.529047,0.00021262,2]
[325402604,1714843833252,-2061.18315395,0.00021917,2]
[325402605,1714843833262,-2244.77999141,0.00021918,2]
[325402606,1714843833273,-662.91853479,0.00021918,2]
[325402607,1714843833283,-166.666666,0.00021918,2]
[325402608,1714843833292,-647.27213954,0.00022329,2]
[325402609,1714843833302,-166.666666,0.00022431,2]
[325402610,1714843833313,-1732.73803995,0.00022759,4]
[325402611,1714843833323,-161.98182993,0.00022768,2]
[325402612,1714843833333,-588.0,0.000228,2]
[325402613,1714843833342,-223.05147184,0.00022898,2]
[325402614,1714843833352,-2000.0,0.000229,2]
[325402615,1714843833361,-6117.89636851,0.000229,3]
[325402616,1714843833370,-169.0586082,0.000229,11]
[325402617,1714843833379,-166.666666,0.00022944,2]
[325402618,1714843833388,-150.0,0.00022983,2]
[325402619,1714843833398,-404.36,0.00022988,3]
[325402620,1714843833407,-216.08417864,0.00022996,2]
[325402621,1714843833416,-162.19970812,0.00022996,2]
[325402622,1714843833426,-154.95481595,0.00022996,2]
[325402623,1714843833435,-155.39710041,0.00022996,2]
[325402624,1714843833445,-189.30063706,0.00022997,2]
[325402625,1714843833454,-154.96928135,0.00022997,2]
[325402626,1714843833463,-1000.0,0.00022997,2]
[325402627,1714843833472,-21209.5876193,0.00022998,2]
[325402628,1714843833482,-154.8915759,0.00022998,2]
[325402629,1714843833492,-472.12357594,0.00022998,2]
[325402630,1714843833503,-474.91817209,0.00022998,2]
[325402631,1714843833513,-15683.13964121,0.00022998,2]
[325402632,1714843833522,-159.34994831,0.00022998,2]
[325402633,1714843833531,-309.36580396,0.00022998,2]
[325402634,1714843833540,-406.56218826,0.00022998,2]
[325402635,1714843833549,-304.06856391,0.00022998,2]
[325402636,1714843833561,-156.55148896,0.00022998,2]
[325402637,1714843833571,-17355.75423132,0.00022998,2]
[325402638,1714843833581,-442.30480109,0.00022998,2]
[325402639,1714843833590,-816.25139438,0.00022998,2]
[325402640,1714843833599,-550.24541163,0.00022998,2]
[325402641,1714843833608,-227.52273626,0.00022998,2]
[325402642,1714843833618,-2073.89913156,0.00022999,2]
[325402657,1714843838577,-994.96143,0.00022999,2]
[325402658,1714843838588,-12697.95301738,0.00022999,2]
[325402659,1714843838626,-12814.78456133,0.00022999,2]
[325402660,1714843838636,-485.283104,0.00022999,2]
[325402661,1714843838646,-485.283104,0.00022999,2]
[325402662,1714843838655,-151.0,0.00022999,2]
[325402663,1714843838664,-151.0,0.00022999,2]
[325402664,1714843838674,-463.700838,0.00022999,2]
[325402665,1714843838683,-151.0,0.00022999,2]
[325402666,1714843838692,-463.700838,0.00022999,2]
[325402667,1714843838701,-151.0,0.00022999,2]
[325402668,1714843838711,-151.0,0.00022999,2]
[325402669,1714843838720,-151.0,0.00022999,2]
[325402670,1714843838729,-151.0,0.00022999,2]
[325402671,1714843838738,-151.0,0.00022999,2]
[325402672,1714843838747,-151.0,0.00022999,2]
[325402673,1714843838757,-151.0,0.00022999,2]
[325402674,1714843838766,-151.0,0.00022999,2]
[325402675,1714843838775,-151.0,0.00022999,2]
[325402676,1714843838785,-1081.895835,0.00022999,2]
[325402677,1714843838794,-1081.895835,0.00022999,2]
[325402678,1714843838803,-35.35588463,0.00022999,2]
[325402755,1714843963639,2061.18315395,0.00021,2]
[325402805,1714844095990,2061.18315395,0.00021,2]
[325402814,1714844230178,2061.18315395,0.00021,2]
[325402815,1714844372196,1155.0,0.00021,2]
[325402816,1714844372219,906.18315395,0.00021,2]
[325402817,1714844408585,150.0,0.0001978,3]
[325402818,1714844409144,150.0,0.00020073,3]
[325402819,1714844522206,1143.0,0.00021,2]
[325402820,1714844522232,918.18315395,0.00021,2]
[325402821,1714844627653,7376.0,0.00020913,2]
[325402822,1714844627676,18832.89683811,0.00020913,2]
[325402897,1714845032776,-375.72904365,0.00020913,2]
[325402898,1714845032788,-1051.21646744,0.00020913,2]
[325402899,1714845032841,-1508.14451283,0.00020913,2]
[325402914,1714845038926,-3120.30000008,0.00020913,2]
[325402932,1714845179995,5000.0,0.0002002,2]
[325402941,1714845571194,270.906493,0.00019932,2]
[325402943,1714845783123,1347.44854695,0.000211,9]
[325402950,1714846209671,150.0,0.00019718,3]
[325402961,1714846232574,-166.34331361,0.00020804,2]
[325402962,1714846232583,-6193.79639532,0.00020893,2]
[325402974,1714846238040,-8097.00267482,0.00020893,2]
[325402975,1714846238049,-2668.14070657,0.00020894,2]
[325402976,1714846238061,-9360.67797,0.00020894,2]
[325402997,1714846246030,-2000.0,0.00020894,2]
[325402998,1714846703161,10000.0,0.0002002,2]
[325402999,1714846718756,10000.0,0.0002002,2]
[325403000,1714846809397,150.0,0.00019611,3]
[325403001,1714847053941,985.20998871,0.00019611,2]
[325403002,1714847071931,656.80665914,0.00019611,2]
[325403003,1714847089933,547.33888262,0.00019611,2]
[325403005,1714847105927,547.33888262,0.00019611,2]
[325403006,1714847123933,285.16355784,0.00019611,2]
[325403007,1714847126975,489.94478985,0.00019856,2]
[325403009,1714847137614,1335.70800233,9.999e-05,2]
[325403010,1714847141932,285.16355784,0.00019611,2]
[325403011,1714847159930,285.16355784,0.00015,2]
[325403012,1714847177940,285.16355784,0.00015,2]
[325403014,1714847199962,285.16355784,0.00015,2]
[325403015,1714847219951,285.16355784,0.00015,2]
[325403016,1714847251968,285.16355784,0.00015,2]
[325403017,1714847267956,285.16355784,0.00015,2]
[325403018,1714847290089,285.16355784,0.00015,2]
[325403021,1714847313990,170.22239254,0.00015,2]
[325403022,1714847410606,150.0,0.00019608,3]
[325403030,1714847432766,-166.34331361,0.00020801,2]
[325403031,1714847432776,-522.27929623,0.00020901,2]
[325403033,1714847432786,-1346.83528454,0.00020901,2]
[325403035,1714847432795,-882.25282706,0.00020901,2]
[325403036,1714847432804,-1030.2941182,0.00020903,2]
[325403037,1714847432813,-648.24701942,0.00020904,2]
[325403038,1714847432823,-185.81629862,0.00020904,2]
[325403039,1714847432834,-242.39245323,0.00020904,2]
[325403040,1714847432843,-164.0768642,0.00020904,2]
[325403041,1714847432852,-7145.39953506,0.00020909,2]
[325403042,1714847432861,-80000.0,0.0002091,2]
[325403043,1714847432870,-1621.54418731,0.0002091,2]
[325403044,1714847432879,-1599.21253532,0.00020911,2]
[325403135,1714847480170,154.75239617,9.999e-05,2]
[325403147,1714847581078,-3937.0,0.00020911,2]
[325403148,1714847590285,560.23445337,9.999e-05,2]
[325403149,1714847610145,-192.24718315,0.0002079,2]
[325403150,1714847610194,-121.5056337,0.00020911,2]
[325403151,1714847626911,521.49441262,9.999e-05,2]
[325403152,1714847643478,420.81191731,9.999e-05,2]
[325403153,1714847643772,240.14730736,9.999e-05,2]
[325403163,1714847859605,154.75239617,9.999e-05,2]
[325403181,1714848101677,550.42296487,9.999e-05,2]
[325403182,1714848107806,24900.0,0.00019727,2]
[325403190,1714848172189,6829.71503551,0.0002,2]
[325403191,1714848185108,160.85371,0.00019453,2]
[325403192,1714848185761,1314.01181236,0.0001,2]
[325403221,1714848287022,1537.598212,0.00019727,2]
[325403222,1714848306619,330.25226883,0.0002,2]
[325403223,1714848336975,1903.8211611,0.00019761,2]
[325403224,1714848357972,473.34586328,9.999e-05,2]
[325403225,1714848381746,284.15482855,9.999e-05,2]
[325403226,1714848400206,475.53679444,9.999e-05,2]
[325403227,1714848415033,154.76784823,9.999e-05,2]
[325403229,1714848424622,412.46510919,9.999e-05,2]
[325403230,1714848504506,212.43605895,9.999e-05,2]
[325403231,1714848515805,1103.68235674,9.999e-05,2]
[325403232,1714848516141,10604.43768767,0.0002,2]
[325403233,1714848521235,731.19073412,0.000138,2]
[325403234,1714848537011,1000.0,9.836e-05,2]
[325403235,1714848538073,10642.30749491,0.0002,2]
[325403241,1714848597049,1000.0,9.859e-05,2]
[325403245,1714848622910,240.14730736,9.999e-05,2]
[325403253,1714848633571,-1000.0,0.000209,2]
[325403254,1714848633580,-1000.0,0.000209,2]
[325403255,1714848633590,-1000.0,0.0002091,2]
[325403256,1714848633599,-500.0,0.00020913,2]
[325403257,1714848633609,-500.0,0.00020913,2]
[325403258,1714848633618,-328.69755751,0.00020913,2]
[325403259,1714848633627,-638.55929158,0.00020913,2]
[325403260,1714848633637,-538.49352003,0.00020913,2]
[325403261,1714848633647,-512.83117334,0.00020913,2]
[325403262,1714848633656,-219.78478858,0.00020913,2]
[325403263,1714848633665,-53341.8693113,0.00020913,2]
[325403294,1714848638568,-2844.5983637,0.00020913,2]
[325403361,1714848646456,-1082.3963491,0.00020913,2]
[325403362,1714848646467,-311.648135,0.00020913,2]
[325403363,1714848657243,1000.0,9.884e-05,2]
[325403364,1714848670022,2270.25718295,0.000189,2]
[325403365,1714848716189,160.453388,0.0001952,2]
[325403366,1714848739322,4264.32132037,0.0002,10]
[325403369,1714848909131,1537.598212,0.00019535,2]
[325403371,1714848970997,1513.50478864,0.000189,2]
[325403381,1714849111820,150.77383924,0.00024508,120]
[325403385,1714849204489,163.14974,0.00019429,2]
[325403390,1714849255404,21859.5725786,0.00019703,2]
[325403393,1714849272465,1009.00319242,0.000189,2]
[325403408,1714849352121,248.46809628,0.00019178,2]
[325403409,1714849352158,422.70056757,0.00019178,2]
[325403410,1714849352193,500.0,0.00019178,2]
[325403411,1714849352286,500.0,0.00019178,2]
[325403412,1714849352321,500.0,0.00019178,2]
[325403414,1714849352384,446.2619171,0.00019178,2]
[325403415,1714849352422,239.86478376,0.00019178,2]
[325403416,1714849352865,170.94372445,0.00019178,2]
[325403427,1714849389375,768.799106,0.00019721,2]
[325403428,1714849402984,240.14730736,9.999e-05,2]
[325403430,1714849443518,19313.01528045,0.00019721,2]
[325403449,1714849573629,672.66879495,0.000189,2]
[325403458,1714849612413,194.06678592,0.00019524,2]
[325403462,1714849643598,2801.93286673,0.0002,2]
[325403474,1714849763891,162.463248,0.00019418,2]
[325403475,1714849791239,24900.0,0.00019692,2]
[325403551,1714849832746,-240.14730736,0.00020247,2]
[325403553,1714849832755,-1924.12289641,0.00020248,2]
[325403555,1714849832766,-954.90591466,0.0002035,2]
[325403556,1714849832777,-1000.0,0.000205,2]
[325403558,1714849832786,-1000.0,0.00020569,2]
[325403560,1714849832796,-161.98182993,0.00020703,2]
[325403562,1714849832805,-306.0,0.000209,2]
[325403564,1714849832815,-306.0,0.000209,2]
[325403565,1714849832825,-601.62067116,0.0002091,2]
[325403567,1714849832837,-398.37932884,0.0002091,2]
[325403569,1714849832847,-4063.42690331,0.00021,2]
[325403571,1714849832857,-1394.04779611,0.00021,2]
[325403573,1714849832868,-1034.0194,0.00021,2]
[325403575,1714849832879,-1586.21617874,0.00021,2]
[325403576,1714849832891,-1491.36155014,0.00021,2]
[325403796,1714849838642,-1454.4484124,0.00021,2]
[325403797,1714849838652,-455.31253195,0.00021,2]
[325403798,1714849838661,-1424.15276395,0.00021,2]
[325403921,1714849840932,-467.3288599,0.00021,2]
[325403925,1714849840944,-250.49178244,0.00021,2]
[325404014,1714849846700,-1821.02140419,0.00021,2]
[325404016,1714849846709,-160.0,0.000211,2]
[325404017,1714849846719,-160.0,0.000211,2]
[325404019,1714849846729,-621.36360698,0.00021159,2]
[325404021,1714849846740,-611.57274073,0.00021162,2]
[325404022,1714849846751,-186.131287,0.00021262,2]
[325404024,1714849846760,-167.50457,0.00021262,2]
[325404026,1714849846770,-186.131287,0.00021262,2]
[325404027,1714849846780,-167.50457,0.00021262,2]
[325404028,1714849846790,-186.131287,0.00021262,2]
[325404029,1714849846799,-167.50457,0.00021262,2]
[325404030,1714849846808,-186.131287,0.00021262,2]
[325404031,1714849846817,-167.50457,0.00021262,2]
[325404032,1714849846828,-167.504569,0.00021262,2]
[325404033,1714849846838,-186.131287,0.00021262,2]
[325404044,1714849846985,-611.57274072,0.00021295,2]
[325404046,1714849846996,-543.40470127,0.00021428,2]
[325404050,1714849874837,1191.62746322,0.000189,2]
[325404051,1714849952378,317.08490732,0.00019178,2]
[325404052,1714849952411,405.54082162,0.00019178,2]